[Event "FIDE WY-U16 Olympiad 2022"]
[Site "Nakhchivan"]
[Date "2022.10.05"]
[Round "4.21"]
[White "Springis, Jevgenijs"]
[Black "Soojay, Jorah"]
[Result "1/2-1/2"]
[ECO "A28"]
[WhiteElo "2057"]
[BlackElo "1644"]
[Annotator "TA"]
[PlyCount "87"]
[EventDate "2022.10.02"]
[EventType "team-tourn"]
[EventCountry "AZE"]
[SourceTitle "playchess.com"]
[Source "ChessBase"]
[SourceQuality "1"]
[WhiteTeam "Latvia"]
[BlackTeam "South Africa"]
[WhiteTeamCountry "LAT"]
[BlackTeamCountry "RSA"]
[TimeControl "40/5400+30:1800+30"]

{[%evp 10,87,19,8,179,194,189,191,175,71,67,77,66,12,77,45,64,27,33,0,0,0,0,0,4,0,0,-17,-22,-21,0,0,0,0,0,0,0,0,0,0,0,-81,-68,-144,-135,-135,-137,-149,-91,-91,-91,-123,-123,-123,-123,-123,-109,-123,-109,-118,-83,-91,-42,-42,-42,-42,-42,-50,-50,-51,-58,-65,-65,-250,0,0,0,0,0,0]} 1. c4 {[%emt 0:00:03]} e5 {[%emt 0:00:06]} 2. Nc3 {[%emt 0:00:09]} Nf6 {[%emt 0:00:02]} 3. Nf3 {[%emt 0:00:12]} Nc6 {[%emt 0:00:06]} 4. e3 {[%emt 0:00:09]} d5 {[%emt 0:00:05]} 5. cxd5 {[%emt 0:00:09]} Nxd5 {[%emt 0:00:05]} 6. Bb5 {[%emt 0:00:09]} Bg4 $2 {[%emt 0:01:51] A28: English Opening: Four Knights Variation.} (6... Nxc3 $11 {and Black has nothing to worry.} 7. bxc3 Bd6) 7. Qa4 $1 $18 {[%emt 0:02:10]} Nxc3 {[%emt 0:02:41]} 8. Bxc6+ {[%emt 0:01:35]} (8. dxc3 Bd7 $11) 8... bxc6 {[%emt 0:00:13] White is clearly better.} 9. Qxc6+ {[%emt 0:00:20]} (9. Qxg4 $18 e4 10. dxc3 (10. bxc3 exf3 11. Qe4+ Kd7 $16) 10... exf3 11. Qe4+ (11. gxf3 Qd3 $16) (11. Qxf3 Qd5 $16) 11... Kd7 12. Qg4+ (12. gxf3 Qf6 $16) 12... Ke8 13. Qxf3) 9... Bd7 $16 {[%emt 0:00:20]} 10. Qxc3 {[%emt 0:00:06]} f6 {[%emt 0:01:12] [#]} 11. Qc4 $146 {[%emt 0:07:08]} (11. d4) (11. d4 $14) ({Predecessor:} 11. d4 e4 12. Nd2 f5 13. O-O a5 14. b3 Bb5 15. Nc4 Bb4 16. Qc2 O-O 17. a3 {1-0 (49) Bergstrom,M (2259)-Agrest,R (2060) Sweden 2013}) 11... Bd6 {[%emt 0:00:56]} (11... Rb8 $11 {keeps the balance.}) 12. O-O {[%emt 0:01:17] White is more active.} Rb8 {[%emt 0:00:45]} 13. a4 {[%emt 0:03:59] Prevents Bb5.} Qe7 {[%emt 0:03:35]} 14. e4 {[%emt 0:05:17]} Rb4 {[%emt 0:05:42]} 15. Qc2 {[%emt 0:01:27]} O-O {[%emt 0:01:29]} 16. d3 {[%emt 0:04:45][%cal Bd2d3,Bd3c4,Bc4c5][%mdl 32]} Rfb8 {[%emt 0:03:35]} 17. Nd2 {[%emt 0:04:57]} Be6 {[%emt 0:08:54]} 18. Nc4 {[%emt 0:01:25]} Bxc4 {[%emt 0:01:44]} 19. dxc4 {[%emt 0:00:37]} Qf7 {[%emt 0:01:27]} 20. b3 {[%emt 0:09:16]} ({But not} 20. c5 Rc4 21. Qd3 Bxc5 $15) 20... Rxb3 {[%emt 0:01:09]} 21. c5 {[%emt 0:01:16]} Bf8 {[%emt 0:01:24]} 22. Be3 {[%emt 0:02:09]} R8b4 {[%emt 0:25:20]} 23. Rfd1 {[%emt 0:08:38]} Qc4 {[%emt 0:07:48]} 24. Qxc4+ {[%emt 0:01:45]} Rxc4 {[%emt 0:00:06]} 25. Rd7 {[%emt 0:05:00]} (25. Rd8 $11) 25... Bxc5 $17 {[%emt 0:04:52]} 26. Rxc7 {[%emt 0:01:58]} (26. Rd8+ $15 Kf7 27. Bxc5 Rxc5 28. h3) 26... Rxe3 {[%emt 0:00:06]} 27. Rxc5 {[%emt 0:02:03]} Rxa4 {[%emt 0:06:19][%mdl 4096] Endgame KRR-KRR} 28. Rb1 {[%emt 0:07:14] [#]} Rb4 {[%emt 0:09:21]} 29. Rbc1 {[%emt 0:00:36]} Rexe4 {[%emt 0:00:39]} 30. Rc8+ {[%emt 0:00:48]} Kf7 {[%emt 0:00:05]} 31. R8c7+ {[%emt 0:00:15]} Kg6 {[%emt 0:00:17]} 32. Rxa7 {[%emt 0:00:07]} Rec4 {[%emt 0:02:21][%cal Rc4c1]} 33. Rd1 {[%emt 0:00:23]} Rd4 {[%emt 0:03:42][%cal Rd4d1]} 34. Rc1 {[%emt 0:01:25]} Rb8 {[%emt 0:00:18]} 35. g3 {[%emt 0:01:17]} h5 {[%emt 0:00:11]} ({Black should try} 35... Rb2 $17 36. Rcc7 Kf5) 36. Rcc7 $15 {[%emt 0:00:31]} Rg8 {[%emt 0:00:07]} 37. h4 {[%emt 0:00:17]} Rd6 {[%emt 0:00:53]} 38. Re7 {[%emt 0:00:14]} Kh6 {[%emt 0:00:25]} 39. Kg2 {[%emt 0:01:39]} g5 {[%emt 0:01:59] And now ...gxh4 would win.} 40. Rh7+ {[%emt 0:00:59]} Kg6 {[%emt 0:00:05] Hoping for ...gxh4.} 41. g4 $2 {[%emt 0:31:16]} (41. hxg5 $15 Kxg5 42. Rae7) 41... gxh4 $2 {[%emt 0:31:57]} (41... hxg4 $19 {Threatens to win with ...gxh4.} 42. h5+ Kf5) 42. Rxh5 $11 {[%emt 0:00:15] The position is equal.} Rg7 {[%emt 0:00:42]} 43. Rxg7+ {[%emt 0:01:08]} Kxg7 {[%emt 0:00:06]} 44. Rxh4 {[%emt 0:00:17] Weighted Error Value: White=0.26 (precise) /Black=0.26 (precise)} 1/2-1/2

[Event "FIDE WY-U16 Olympiad 2022"]
[Site "Nakhchivan"]
[Date "2022.10.05"]
[Round "4.22"]
[White "Gonzalez Soler, Leduard Manuel"]
[Black "Zhakshylykov, Erzhan"]
[Result "0-1"]
[ECO "A37"]
[WhiteElo "2251"]
[BlackElo "2260"]
[Annotator "TA"]
[PlyCount "64"]
[EventDate "2022.10.02"]
[EventType "team-tourn"]
[EventCountry "AZE"]
[SourceTitle "playchess.com"]
[Source "ChessBase"]
[SourceQuality "1"]
[WhiteTeam "Cuba"]
[BlackTeam "Kyrgyzstan"]
[WhiteTeamCountry "CUB"]
[BlackTeamCountry "KGZ"]
[TimeControl "40/5400+30:1800+30"]

{[%evp 12,64,22,0,7,-10,0,-23,-27,-27,-18,-25,-29,-19,-32,-32,-36,-23,-26,-18,-22,-24,-10,-18,-21,-23,-21,-109,-44,-83,-70,-81,-81,-149,-58,-1137,-1127,-1235,-1240,-1230,-1232,-1222,-1206,-1211,-1190,-2121,-1941,-29989,-29990,-29989,-29986,-29997,-29998,-29998,-29999]} 1. Nf3 {[%emt 0:00:08]} c5 {[%emt 0:03:07]} 2. c4 {[%emt 0:00:08]} Nc6 {[%emt 0:01:11]} 3. g3 {[%emt 0:00:34]} g6 {[%emt 0:05:11]} 4. Bg2 {[%emt 0:00:13]} Bg7 {[%emt 0:00:07]} 5. Nc3 {[%emt 0:00:04]} d6 {[%emt 0:01:29]} 6. O-O {[%emt 0:00:26]} Nh6 {[%emt 0:02:04] 6...e6 is a critical line.} 7. e3 {[%emt 0:05:54][%cal Be2e3,Be3d4,Bd4d5][%mdl 32]} (7. d4) 7... O-O {[%emt 0:05:28] A37: Symmetrical English vs ...g6: 4 Bg2 Bg7 5 Nf3.} 8. d4 {[%emt 0:03:06]} cxd4 {[%emt 0:04:01]} 9. exd4 {[%emt 0:26:06]} (9. Nxd4 Bd7 10. b3) 9... Bg4 {[%emt 0:07:18] Black has an edge.} 10. h3 {[%emt 0:05:53]} Bxf3 {[%emt 0:00:13]} 11. Bxf3 {[%emt 0:00:07]} Nf5 {[%emt 0:01:04] [#]} 12. d5 $146 {[%emt 0:09:01]} ({Predecessor:} 12. Bxc6 bxc6 13. d5 Rc8 14. Qd3 Re8 15. Bd2 Qb6 16. b3 Qd4 17. Qxd4 Bxd4 18. dxc6 Nxg3 {1-0 (49) Lewtak,D (2338)-Solnicki,M (2143) Hucisko 2016}) 12... Ne5 {[%emt 0:08:49]} 13. Be4 {[%emt 0:08:15]} Nxc4 {[%emt 0:07:14]} 14. Bxf5 {[%emt 0:06:38]} gxf5 {[%emt 0:00:04]} 15. Qh5 {[%emt 0:03:18]} Qd7 {[%emt 0:03:07]} 16. Bh6 {[%emt 0:02:33]} Bxh6 {[%emt 0:02:58]} 17. Qxh6 {[%emt 0:00:14]} Kh8 {[%emt 0:02:20]} 18. b3 {[%emt 0:09:28]} Ne5 {[%emt 0:06:06][%cal Of5f4]} 19. f4 {[%emt 0:00:13]} (19. Qe3 $11) 19... Ng6 {[%emt 0:04:36]} (19... Qc7 $17 20. fxe5 Qxc3) 20. h4 {[%emt 0:02:22]} Qc7 {[%emt 0:01:54]} 21. Rf3 {[%emt 0:06:46]} Rg8 {[%emt 0:11:43] Threatens to win with ...Qa5.} 22. Kh1 {[%emt 0:00:29]} (22. Rd1 $142) 22... Nf8 {[%emt 0:11:59]} (22... Rg7 $17 23. Re3 e6) 23. h5 $2 {[%emt 0:00:10][%mdl 8192] [#] This move loses the game for White.} (23. Qh5 $15) 23... Nd7 $19 {[%emt 0:01:05][%cal Bf8d7,Bd7f6,Bf6g4][%mdl 32]} 24. g4 {[%emt 0:09:51]} Nf6 {[%emt 0:01:27]} 25. gxf5 {[%emt 0:00:23]} Ng4 {[%emt 0:00:14]} 26. Qg5 {[%emt 0:00:03]} Rxg5 {[%emt 0:00:08]} 27. fxg5 {[%emt 0:00:01]} Rg8 {[%emt 0:00:34]} 28. Rg1 {[%emt 0:01:13]} Rxg5 {[%emt 0:00:38] [#] ( -> ...Qc5)} 29. Rfg3 {[%emt 0:00:46]} Rxh5+ {[%emt 0:00:18] Black mates.} 30. Kg2 {[%emt 0:00:21]} Rh2+ {[%emt 0:00:49]} 31. Kf3 {[%emt 0:00:43]} Qxc3+ {[%emt 0:00:08]} 32. Kxg4 {[%emt 0:00:06]} Qd4+ {[%emt 0:00:08] Weighted Error Value: White=0.85/Black=0.07 (flawless)} 0-1

[Event "FIDE WY-U16 Olympiad 2022"]
[Site "Nakhchivan"]
[Date "2022.10.05"]
[Round "4.22"]
[White "Wang, Pei-Shan"]
[Black "Adamovics, Aleksejs"]
[Result "1/2-1/2"]
[ECO "B30"]
[WhiteElo "1315"]
[BlackElo "2051"]
[Annotator "TA"]
[PlyCount "169"]
[EventDate "2022.10.02"]
[EventType "team-tourn"]
[EventCountry "AZE"]
[SourceTitle "playchess.com"]
[Source "ChessBase"]
[SourceQuality "1"]
[WhiteTeam "South Africa"]
[BlackTeam "Latvia"]
[WhiteTeamCountry "RSA"]
[BlackTeamCountry "LAT"]
[TimeControl "40/5400+30:1800+30"]

{[%evp 12,169,10,0,59,68,50,43,72,20,16,-16,-16,-7,3,-20,-14,-18,-10,-10,0,0,-10,-37,-38,-111,-20,-54,-15,-14,-15,-14,-14,-9,0,-15,-9,-39,0,0,0,0,0,0,-4,-31,-29,-42,-38,-31,-40,-40,-33,-46,0,0,-2,-8,26,26,15,27,72,108,108,109,116,58,56,56,81,77,85,92,112,63,81,81,94,63,64,39,56,31,31,0,56,56,57,14,29,16,16,20,65,63,63,6,6,6,6,0,0,0,8,8,16,8,8,8,8,8,64,0,8,0,0,0,0,-8,0,-142,0,0,0,0,0,0,-8,-8,-8,-8,0,0,0,-10,-19,-72,-69,-1252,-1250,-747,-64,-2426,-2233,-6457,-6007,-5081,-5844,-29967,0,0,0,0,0,0,0,0,0,0]} 1. e4 {[%emt 0:00:02]} c5 {[%emt 0:00:07]} 2. Nf3 {[%emt 0:00:11]} Nc6 {[%emt 0:00:19]} 3. Bb5 {[%emt 0:00:12]} e6 {[%emt 0:00:21]} 4. O-O {[%emt 0:00:45]} Nge7 {[%emt 0:00:52]} 5. Re1 {[%emt 0:00:44]} a6 {[%emt 0:00:53]} 6. Bf1 {[%emt 0:00:17]} d5 {[%emt 0:02:25]} 7. d3 {[%emt 0:04:01]} Ng6 {[%emt 0:04:29] B30: Sicilian: 2...Nc6 3 Bb5, lines without ...g6.} (7... d4 $11) 8. exd5 $14 {[%emt 0:03:04]} Qxd5 {[%emt 0:00:07]} 9. Nc3 {[%emt 0:00:17]} Qd8 {[%emt 0:00:28] White is slightly better.} 10. Ne4 {[%emt 0:02:19]} (10. g3 $16) 10... Be7 $11 {[%emt 0:02:30] [#]} 11. b3 $146 {[%emt 0:04:08]} ({Predecessor:} 11. Be3 b6 12. g3 O-O 13. Bg2 Ra7 14. h4 f5 15. Nc3 Bf6 16. h5 Nge5 17. Nh2 {0-1 (44) Guzman Moneo,A (2192)-Antoli Royo,J (2412) Aragon 2013}) 11... O-O {[%emt 0:01:49]} 12. Bb2 {[%emt 0:03:21]} Nd4 {[%emt 0:04:02]} 13. c3 {[%emt 0:06:25]} Nxf3+ {[%emt 0:05:29]} 14. Qxf3 {[%emt 0:02:32]} Bd7 {[%emt 0:00:29]} 15. Qe3 {[%emt 0:02:08]} Qc7 {[%emt 0:03:21]} 16. Rad1 {[%emt 0:04:05]} Rad8 {[%emt 0:07:53]} 17. d4 {[%emt 0:03:59]} (17. c4 $5 {[%cal Rd3d4]}) 17... cxd4 {[%emt 0:01:01]} 18. Rxd4 {[%emt 0:00:49]} (18. cxd4 $15 Bb4 19. Bc3 Bxc3 20. Nxc3) 18... Bc6 {[%emt 0:00:47]} ({Black should play} 18... f5 $17 19. Rc4 Qa5) 19. Red1 {[%emt 0:04:02]} e5 {[%emt 0:02:59]} 20. Rxd8 {[%emt 0:01:23]} Rxd8 {[%emt 0:00:03]} 21. Rxd8+ {[%emt 0:00:10]} Qxd8 {[%emt 0:00:10]} 22. Ng3 {[%emt 0:01:04]} Qa5 {[%emt 0:06:57]} (22... Qd1 {with more complications.} 23. Nf5 Bf8 24. Qc1 Qd7) 23. a4 {[%emt 0:05:08]} Qd8 {[%emt 0:05:14]} 24. Qd3 {[%emt 0:03:46] Against Qd1} Qb6 {[%emt 0:01:42]} 25. Qc2 {[%emt 0:03:38]} Nf4 {[%emt 0:03:24]} 26. b4 {[%emt 0:03:39]} Bd7 {[%emt 0:06:42]} 27. Bc1 {[%emt 0:04:00]} Qc7 {[%emt 0:04:34] With the idea ...Bxb4.} 28. Qb3 {[%emt 0:05:21]} Be6 {[%emt 0:01:34]} 29. Qb2 {[%emt 0:02:27]} Nd5 {[%emt 0:03:00][%cal Bf4d5,Bd5b6,Bb6c4][%mdl 32]} 30. Bd2 {[%emt 0:01:40]} Nb6 {[%emt 0:03:21]} 31. a5 {[%emt 0:02:08]} Nc4 {[%emt 0:00:20]} 32. Qc1 {[%emt 0:00:09]} Nd6 {[%emt 0:01:12]} 33. Qe1 {[%emt 0:02:04]} f6 {[%emt 0:04:07]} 34. Bd3 {[%emt 0:03:28]} Qc6 {[%emt 0:02:47]} 35. f4 {[%emt 0:03:35]} Qd5 {[%emt 0:02:35]} 36. fxe5 {[%emt 0:03:58]} Qxd3 {[%emt 0:01:34]} 37. exf6 {[%emt 0:00:58][%mdl 64] [#] Discovered Attack} Kf7 {[%emt 0:05:03]} 38. fxe7 {[%emt 0:00:05]} Kxe7 {[%emt 0:00:09]} 39. Qe3 {[%emt 0:01:35]} (39. Bf4 $16) 39... Qxe3+ $14 {[%emt 0:03:43]} 40. Bxe3 {[%emt 0:00:05][%mdl 4096] Endgame KBN-KBN} Nf5 {[%emt 0:03:48]} 41. Bc5+ {[%emt 0:31:04]} Kd7 {[%emt 0:30:02]} 42. Nh5 {[%emt 0:00:58]} Bf7 {[%emt 0:06:07]} 43. Nf4 {[%emt 0:01:18]} (43. g4 $16) 43... g5 {[%emt 0:00:00]} 44. Nd3 {[%emt 0:00:00]} Ke6 {[%emt 0:00:00] Against Ne5} 45. Kf2 {[%emt 0:00:00]} Kd5 {[%emt 0:00:00]} 46. Nb2 {[%emt 0:00:00]} Ke4 {[%emt 0:00:00]} 47. Bf8 {[%emt 0:00:00]} Bb3 {[%emt 0:00:00] Prevents Na4.} 48. Bc5 {[%emt 0:00:00]} Ba2 {[%emt 0:00:00]} (48... Bf7 $11) 49. g4 {[%emt 0:00:00]} Ng7 {[%emt 0:00:00]} 50. c4 {[%emt 0:00:00]} Ne6 {[%emt 0:00:00]} 51. Be3 {[%emt 0:00:00]} Nf4 {[%emt 0:00:00]} 52. b5 {[%emt 0:00:00]} Ng6 {[%emt 0:01:12]} 53. bxa6 {[%emt 0:00:00]} bxa6 {[%emt 0:00:14]} 54. c5 {[%emt 0:00:00]} (54. Na4 $14 Bxc4 55. Bxg5) 54... Ne5 $11 {[%emt 0:00:55]} 55. h3 {[%emt 0:00:00]} Nc6 {[%emt 0:00:42]} 56. Na4 {[%emt 0:00:00]} Bb3 {[%emt 0:00:37]} 57. Nb6 {[%emt 0:00:00]} Nxa5 {[%emt 0:01:06]} 58. Bxg5 {[%emt 0:00:00]} Nc6 {[%emt 0:00:28]} 59. Bf6 {[%emt 0:00:40]} a5 {[%emt 0:00:37]} 60. Bb2 {[%emt 0:03:02]} a4 {[%emt 0:00:39]} 61. Nd7 {[%emt 0:02:11]} Bc2 {[%emt 0:01:44]} (61... Kd3 $11) 62. Kg3 {[%emt 0:03:27]} ({White should try} 62. Nf6+ $14 Kf4 63. Ke2) 62... Kd5 {[%emt 0:00:38]} 63. Ba3 {[%emt 0:02:29]} Nd4 {[%emt 0:01:16]} 64. Nb8 {[%emt 0:01:15]} Bd3 {[%emt 0:01:44]} 65. Nd7 {[%emt 0:01:56]} Nc2 {[%emt 0:00:21]} 66. c6 {[%emt 0:01:05]} Kxc6 {[%emt 0:01:34]} (66... Nxa3 $17 67. c7 Ba6 68. Nb6+ Kd6 69. Nxa4 Nb5) 67. Ne5+ {[%emt 0:00:05]} Kb5 {[%emt 0:00:01]} 68. Nxd3 {[%emt 0:00:09]} Nxa3 {[%emt 0:00:05] KN-KN} 69. h4 {[%emt 0:00:13]} Nc4 {[%emt 0:00:42][%cal Oc4e5] [#] Hoping for ...Ne5!} 70. Kf4 {[%emt 0:00:35] Against Ne5} a3 {[%emt 0:00:29][%cal Ba4a3,Ba3a2][%mdl 32]} 71. Nc1 {[%emt 0:00:22]} Kc6 {[%emt 0:00:26]} 72. g5 {[%emt 0:00:30]} Kd7 {[%emt 0:00:33]} 73. Ke4 {[%emt 0:03:05]} Ke6 {[%emt 0:00:18]} 74. Nb3 {[%emt 0:01:00]} (74. h5 $11) 74... a2 $17 {[%emt 0:00:22][%cal Oc4d2] ...Nd2+! is the strong threat.} 75. Na1 $2 {[%emt 0:00:51][%mdl 8192]} (75. Kf4 $15) 75... Nd6+ $19 {[%emt 0:00:52]} 76. Kf4 {[%emt 0:00:22]} Nc8 $2 {[%emt 0:00:57]} (76... Kd5 $19 {Strongly threatening ...Kd4.} 77. h5 Ne8) 77. Kg4 $2 {[%emt 0:01:09][%mdl 8192]} (77. Ke4 $15) 77... Ne7 {[%emt 0:00:17] And now ...Kd5 would win.} 78. h5 {[%emt 0:01:10]} Ke5 {[%emt 0:00:23]} 79. Nc2 {[%emt 0:01:25]} Ke4 {[%emt 0:00:12]} 80. g6 {[%emt 0:00:18]} Nxg6 $2 {[%emt 0:01:18]} 81. hxg6 $11 {[%emt 0:00:08] The position is equal.} hxg6 {[%emt 0:00:01]} 82. Kg5 {[%emt 0:01:27]} Kf3 {[%emt 0:00:56]} 83. Kxg6 {[%emt 0:00:05]} Ke2 {[%emt 0:00:05] ( -> ...Kd2)} 84. Kf5 {[%emt 0:00:15]} Kd2 {[%emt 0:00:05]} (84... Kd1 $5 85. Na1 $8 Kd2 $11) 85. Na1 {[%emt 0:00:06] Weighted Error Value: White=0.15 (very precise) /Black=0.15 (very precise)} 1/2-1/2

[Event "FIDE WY-U16 Olympiad 2022"]
[Site "Nakhchivan"]
[Date "2022.10.05"]
[Round "4.23"]
[White "Francs, Marats"]
[Black "Jacobs, Elsje"]
[Result "1-0"]
[ECO "D35"]
[WhiteElo "1976"]
[BlackElo "1168"]
[Annotator "TA"]
[PlyCount "117"]
[EventDate "2022.10.02"]
[EventType "team-tourn"]
[EventCountry "AZE"]
[SourceTitle "playchess.com"]
[Source "ChessBase"]
[SourceQuality "1"]
[WhiteTeam "Latvia"]
[BlackTeam "South Africa"]
[WhiteTeamCountry "LAT"]
[BlackTeamCountry "RSA"]
[TimeControl "40/5400+30:1800+30"]

{[%evp 9,117,12,33,29,35,16,32,8,16,19,32,22,85,70,91,87,80,91,87,81,80,67,70,67,111,91,116,100,162,144,142,133,551,418,388,404,374,243,548,547,539,549,530,536,552,550,533,513,608,606,678,636,981,937,986,971,900,897,1330,1323,2202,1899,4810,4794,29958,29962,29962,29963,29959,29963,29968,29972,29969,29971,29978,29978,29978,29978,29982,29983,29982,29977,29986,29987,29987,29988,29988,29989,29990,29991,29992,29979,29979,29980,29980,29981,29981,29982,29984,29985,29985,29983,29983,29982,29982,29983,29983,29984,29984,29985]} 1. d4 {[%emt 0:00:02]} d5 {[%emt 0:00:06]} 2. c4 {[%emt 0:00:23]} e6 {[%emt 0:00:06]} 3. Nc3 {[%emt 0:00:17]} Nf6 {[%emt 0:00:13]} 4. cxd5 {[%emt 0:00:18]} exd5 {[%emt 0:00:21]} 5. Bg5 {[%emt 0:00:16]} Be6 {[%emt 0:00:34]} 6. e3 {[%emt 0:01:13] D35: Queen's Gambit Declined: Exchange Variation.} Nbd7 {[%emt 0:01:15]} 7. Qc2 {[%emt 0:00:19]} Bb4 {[%emt 0:03:36]} 8. Nf3 {[%emt 0:00:58] White is slightly better.} c6 {[%emt 0:03:04]} 9. Bd3 {[%emt 0:00:52]} Qc7 {[%emt 0:05:19]} 10. O-O {[%emt 0:00:38]} O-O {[%emt 0:01:18] [#]} (10... Bd6 $11) 11. Bf4 $1 $16 {[%emt 0:00:18]} Bd6 {[%emt 0:08:38] [#]} 12. Nb5 $1 cxb5 {[%emt 0:05:16]} 13. Qxc7 {[%emt 0:01:53]} Bxc7 {[%emt 0:00:09]} 14. Bxc7 {[%emt 0:00:02] [#]} a6 $146 {[%emt 0:00:45]} ({Predecessor:} 14... Rfc8 15. Bg3 a6 16. Rfc1 Nb6 17. b3 Nfd7 18. Bc7 Re8 19. Rc2 f6 20. Rac1 Rac8 {1-0 (59) Erenda,B (1868)-Putak,K (1781) Sv Filip i Jakov 2016}) 15. Rac1 {[%emt 0:00:13] White is more active.} Ne4 {[%emt 0:02:58]} 16. Rfd1 {[%emt 0:01:50]} Bg4 {[%emt 0:01:37]} 17. Rc2 {[%emt 0:01:28]} Rfe8 {[%emt 0:02:49]} 18. Rdc1 {[%emt 0:02:57]} Bxf3 {[%emt 0:06:32]} (18... Nb8 $16) 19. gxf3 $18 {[%emt 0:00:17]} Ng5 {[%emt 0:00:22]} 20. Kg2 {[%emt 0:00:29]} Re6 $2 {[%emt 0:03:38][%mdl 8192] Loses the game.} (20... Ne6 $16) 21. Bf5 {[%emt 0:01:28]} g6 {[%emt 0:15:08]} 22. Bxe6 {[%emt 0:00:34]} Nxe6 {[%emt 0:00:04]} 23. Be5 {[%emt 0:00:51] Threatens to win with Rc8+.} Nxe5 $2 {[%emt 0:00:57]} (23... Nb6 {is tougher.} 24. f4 b4) 24. Rc8+ {[%emt 0:01:13]} Rxc8 {[%emt 0:01:43]} 25. Rxc8+ {[%emt 0:00:02]} Kg7 {[%emt 0:00:09] And now ...Nc4 would win.} 26. dxe5 {[%emt 0:00:15][%mdl 4096] Endgame KR-KN} d4 {[%emt 0:04:22]} 27. exd4 {[%emt 0:01:13]} Nxd4 {[%emt 0:00:22]} 28. Rc7 {[%emt 0:00:46]} Nc6 {[%emt 0:01:52]} 29. Rxb7 {[%emt 0:01:22]} Nxe5 {[%emt 0:00:55]} 30. Rb6 {[%emt 0:00:28]} Nc4 {[%emt 0:02:36]} 31. Rxa6 {[%emt 0:00:31]} Nxb2 {[%emt 0:00:18]} 32. Rb6 {[%emt 0:00:10]} Na4 {[%emt 0:00:08]} 33. Rxb5 {[%emt 0:00:10]} Nc3 {[%emt 0:00:15]} 34. Ra5 {[%emt 0:00:14]} h5 {[%emt 0:01:37]} 35. a4 {[%emt 0:00:15]} Ne2 {[%emt 0:05:52]} 36. Ra7 {[%emt 0:00:25] a5 would kill now.} Nf4+ {[%emt 0:00:26]} 37. Kf1 {[%emt 0:00:10] White mates.} Ne6 {[%emt 0:01:39]} 38. a5 {[%emt 0:00:08]} Nc5 {[%emt 0:13:22]} 39. a6 {[%emt 0:00:02]} g5 {[%emt 0:01:38] [#]} 40. Rxf7+ $3 {[%emt 0:01:33][%mdl 512]} Kxf7 {[%emt 0:01:12] KN-KP} 41. a7 {[%emt 0:30:01]} Ne6 {[%emt 0:32:43]} 42. a8=Q {[%emt 0:00:26]} Kf6 {[%emt 0:01:16]} 43. Qe4 {[%emt 0:00:15]} h4 {[%emt 0:00:43]} 44. Ke2 {[%emt 0:00:26]} Nf4+ {[%emt 0:00:20]} 45. Kd2 {[%emt 0:00:19]} h3 {[%emt 0:00:57]} 46. Kc3 {[%emt 0:00:21]} Ne6 {[%emt 0:00:32]} 47. Kc4 {[%emt 0:00:18]} Nf4 {[%emt 0:00:39]} 48. Kc5 {[%emt 0:00:28]} Ne6+ {[%emt 0:01:13]} 49. Kd6 {[%emt 0:00:02]} Nf4 {[%emt 0:00:11]} 50. Qxf4+ {[%emt 0:01:23]} gxf4 {[%emt 0:00:38] K3P-KPP} 51. Kd5 {[%emt 0:00:01]} Kf5 {[%emt 0:00:22]} 52. Kd4 {[%emt 0:00:02]} Kf6 {[%emt 0:02:02]} 53. Ke4 {[%emt 0:00:01]} Kg6 {[%emt 0:00:11]} 54. Kxf4 {[%emt 0:00:05]} Kf6 {[%emt 0:01:45]} 55. Kg3 {[%emt 0:00:02]} Kg5 {[%emt 0:00:40]} 56. Kxh3 {[%emt 0:00:01]} Kf4 {[%emt 0:00:35]} 57. Kg2 {[%emt 0:00:03]} Kg5 {[%emt 0:00:30]} 58. Kg3 {[%emt 0:00:01]} Kf5 {[%emt 0:00:31]} 59. h4 {[%emt 0:00:02] Weighted Error Value: White=0.20 (precise) /Black=0.82} 1-0